fUST/lending_fUST_20240111
["ID","MTS","AMOUNT","RATE_DAILY","PERIOD"]
[311153557,1704937841092,-500.0,0.00027397,2]
[311153558,1704937841101,-590.86222624,0.000274,2]
[311153559,1704937841110,-500.0,0.00027534,2]
[311153560,1704937841119,-500.0,0.00027671,2]
[311153561,1704937841128,-624.86805672,0.0002772,2]
[311153562,1704937841137,-620.24132442,0.0002772,2]
[311153563,1704937841147,-500.0,0.00027808,2]
[311153564,1704937841157,-500.0,0.00027945,2]
[311153565,1704937841166,-157.84708888,0.00028,2]
[311153566,1704937841175,-500.0,0.00028082,2]
[311153567,1704937841185,-500.0,0.00028219,2]
[311153568,1704937841194,-500.0,0.00028356,2]
[311153569,1704937841203,-150.98490151,0.00028368,7]
[311153570,1704937841212,-500.0,0.00028493,2]
[311153571,1704937841221,-9100.04106185,0.000285,4]
[311153572,1704937841230,-500.0,0.0002863,2]
[311153573,1704937841239,-254.23001474,0.00028701,3]
[311153574,1704937841249,-155.0,0.00028767,2]
[311153575,1704937841257,-500.0,0.00028767,2]
[311153576,1704937841266,-242.90501079,0.000288,4]
[311153577,1704937841277,-6629.26814552,0.000289,2]
[311153578,1704937841286,-500.0,0.00028904,2]
[311153579,1704937841295,-150.98490151,0.00028947,4]
[311153580,1704937841303,-155.01240099,0.00029,2]
[311153581,1704937841313,-3806.08760397,0.00029,2]
[311153582,1704937841322,-500.0,0.00029041,2]
[311153583,1704937841331,-620.24340284,0.00029106,2]
[311153584,1704937841340,-620.01206622,0.00029106,2]
[311153585,1704937841349,-1789.41331797,0.00029148,2]
[311153586,1704937841358,-5000.0,0.00029148,5]
[311153587,1704937841368,-34225.12386094,0.00029148,2]
[311153588,1704937841376,-5000.0,0.00029158,5]
[311153589,1704937841385,-5000.0,0.00029158,5]
[311153590,1704937841394,-5000.0,0.00029158,5]
[311153591,1704937841403,-4169.16810407,0.00029158,2]
[311153592,1704937841412,-1489.98501646,0.00029167,2]
[311153593,1704937841421,-79938.75324227,0.00029176,3]
[311153594,1704937841431,-500.0,0.00029178,2]
[311153595,1704937841440,-9838.335109,0.00029186,2]
[311153596,1704937841449,-500.0,0.00029315,2]
[311153597,1704937841458,-306.0,0.00029315,2]
[311153598,1704937841468,-153.0,0.00029315,2]
[311153599,1704937841477,-153.0,0.00029315,2]
[311153600,1704937841486,-153.0,0.00029315,2]
[311153601,1704937841495,-205.8499845,0.00029315,2]
[311153602,1704937841505,-816.731,0.000294,4]
[311153603,1704937841514,-816.732,0.000294,4]
[311153604,1704937841524,-816.731,0.000294,4]
[311153605,1704937841533,-816.731,0.000294,4]
[311153606,1704937841543,-816.732,0.000294,4]
[311153607,1704937841552,-500.0,0.00029452,2]
[311153608,1704937841561,-1500.0,0.000295,2]
[311153609,1704937841571,-150.98490151,0.00029538,2]
[311153610,1704937841580,-500.0,0.00029589,2]
[311153611,1704937841589,-153.0,0.00029589,2]
[311153612,1704937841598,-153.0,0.00029589,2]
[311153613,1704937841607,-306.0,0.00029589,2]
[311153614,1704937841617,-153.0,0.00029589,2]
[311153615,1704937841626,-500.0,0.00029726,2]
[311153616,1704937841636,-500.0,0.00029863,2]
[311153617,1704937841645,-153.73462599,0.00029884,2]
[311153618,1704937841655,-590.86222624,0.000299,2]
[311153619,1704937841664,-151.61911179,0.0002994,2]
[311153620,1704937841674,-151.2478173,0.00029953,2]
[311153621,1704937841684,-158.59,0.00029998,2]
[311153622,1704937841693,-158.59,0.00029998,2]
[311153623,1704937841703,-158.59,0.00029998,2]
[311153624,1704937841792,-158.59,0.00029998,2]
[311153625,1704937841802,-158.59,0.00029998,2]
[311153626,1704937841811,-158.59,0.00029998,2]
[311153627,1704937841820,-158.59,0.00029998,2]
[311153628,1704937841829,-158.59,0.00029998,2]
[311153629,1704937841838,-158.59,0.00029998,2]
[311153630,1704937841847,-158.59,0.00029998,2]
[311153631,1704937841858,-442212.16623,0.00029999,2]
[311153632,1704937841867,-500.0,0.00029999,2]
[311153633,1704937841876,-686.6335406,0.0003,4]
[311153634,1704937841885,-236.52252731,0.0003,7]
[311153635,1704937841894,-639.65046808,0.0003,4]
[311153636,1704937841903,-399.65900583,0.0003,4]
[311153637,1704937841912,-15040.0244209,0.0003,4]
[311153638,1704937841921,-282.5931468,0.0003,3]
[311153639,1704937841931,-155.01550155,0.0003,2]
[311153640,1704937841941,-6973.85683356,0.0003,4]
[311153641,1704937841951,-463.38099934,0.0003,4]
[311153642,1704937841961,-1475.70472705,0.0003,2]
[311153643,1704937841971,-4968.0,0.0003,10]
[311153644,1704937841980,-160.0,0.0003,7]
[311153645,1704937841989,-300.0,0.0003,4]
[311153646,1704937841998,-2794.48662757,0.0003,4]
[311153647,1704937842008,-2448.05627337,0.0003,2]
[311153648,1704937842017,-200.0,0.0003,2]
[311153649,1704937842026,-1025.8328647,0.0003,2]
[311153650,1704937842035,-501.00894022,0.0003,2]
[311153651,1704937842043,-409.88428547,0.0003,2]
[311153652,1704937842052,-4452.61455502,0.0003,4]
[311153653,1704937842062,-11907.88774922,0.0003,5]
[311153654,1704937842072,-328542.18545691,0.0003,14]
[311153655,1704937842081,-155.18046676,0.0003,4]
[311153656,1704937842089,-734.76379061,0.0003,4]
[311153657,1704937842098,-1200.0,0.0003,4]
[311153658,1704937842107,-156.43500893,0.0003,4]
[311153659,1704937842117,-309.82086831,0.0003,2]
[311153660,1704937842126,-154.98450155,0.0003,14]
[311153661,1704937842134,-157.18870053,0.0003,4]
[311153662,1704937842143,-275.0,0.0003,2]
[311153663,1704937842152,-38379.93475574,0.00030036,3]
[311153664,1704937842163,-306.0,0.00030055,2]
[311153665,1704937842172,-500.0,0.00030136,2]
[311153666,1704937842181,-500.0,0.00030136,2]
[311153667,1704937842191,-500.0,0.00030136,2]
[311153668,1704937842200,-500.0,0.00030136,2]
[311153669,1704937842209,-500.0,0.00030136,2]
[311153670,1704937842218,-500.0,0.00030136,2]
[311153671,1704937842227,-500.0,0.00030136,2]
[311153672,1704937842236,-500.0,0.00030136,2]
[311153673,1704937842245,-500.41,0.00030136,2]
[311153674,1704937842254,-500.0,0.00030136,2]
[311153675,1704937842263,-421.07384829,0.00030136,2]
[311153676,1704937842272,-500.0,0.00030136,2]
[311153677,1704937842281,-150.0,0.00030136,2]
[311153678,1704937842290,-507.68147259,0.00030136,2]
[311153679,1704937842298,-500.0,0.00030136,2]
[311153680,1704937842307,-502.49872204,0.00030136,2]
[311153681,1704937842316,-500.0,0.00030136,2]
[311153682,1704937842325,-500.0,0.00030136,2]
[311153683,1704937842334,-500.0,0.00030136,2]
[311153684,1704937842343,-500.0,0.00030136,2]
[311153685,1704937842352,-500.0,0.00030136,2]
[311153686,1704937842360,-384.12539335,0.00030136,2]
[311153687,1704937842369,-500.0,0.00030136,2]
[311153688,1704937842379,-523.49978699,0.00030136,2]
[311153689,1704937842388,-500.0,0.00030136,2]
[311153690,1704937842397,-500.0,0.00030136,2]
[311153691,1704937842406,-500.0,0.00030136,2]
[311153692,1704937842415,-500.0,0.00030136,2]
[311153693,1704937842424,-500.0,0.00030136,2]
[311153694,1704937842433,-500.0,0.00030136,2]
[311153695,1704937842442,-500.0,0.00030136,2]
[311153696,1704937842451,-500.0,0.00030136,2]
[311153697,1704937842460,-500.0,0.00030136,2]
[311153698,1704937842470,-230.84334159,0.00030136,2]
[311153699,1704937842479,-500.0,0.00030136,2]
[311153700,1704937842487,-500.0,0.00030136,2]
[311153701,1704937842496,-500.0,0.00030136,2]
[311153702,1704937842505,-500.0,0.00030136,2]
[311153703,1704937842514,-500.0,0.00030136,2]
[311153704,1704937842523,-503.58951004,0.00030136,2]
[311153705,1704937842532,-500.0,0.00030136,2]
[311153706,1704937842542,-500.0,0.00030136,2]
[311153707,1704937842551,-500.0,0.00030136,2]
[311153708,1704937842560,-500.0,0.00030136,2]
[311153709,1704937842570,-500.0,0.00030136,2]
[311153710,1704937842579,-505.49538568,0.00030136,2]
[311153711,1704937842588,-503.18365884,0.00030136,2]
[311153712,1704937842597,-500.0,0.00030136,2]
[311153713,1704937842606,-507.36864681,0.00030136,2]
[311153714,1704937842615,-500.0,0.00030136,2]
[311153715,1704937842625,-500.0,0.00030136,2]
[311153716,1704937842636,-500.0,0.00030136,2]
[311153717,1704937842649,-500.0,0.00030136,2]
[311153718,1704937842658,-217.36605531,0.00030136,2]
[311153719,1704937842667,-220.2460912,0.00030136,2]
[311153720,1704937842677,-500.0,0.00030136,2]
[311153721,1704937842687,-500.0,0.00030136,2]
[311153722,1704937842696,-500.0,0.00030136,2]
[311153723,1704937842705,-503.55062349,0.00030136,2]
[311153724,1704937842715,-500.81246764,0.00030136,2]
[311153726,1704937842725,-500.0,0.00030136,2]
[311153728,1704937842734,-500.0,0.00030136,2]
[311153730,1704937842743,-1793.75,0.00030136,2]
[311153733,1704937842752,-500.0,0.00030136,2]
[311153736,1704937842761,-500.0,0.00030136,2]
[311153739,1704937842770,-501.88985475,0.00030136,2]
[311153740,1704937842780,-500.0,0.00030136,2]
[311153742,1704937842789,-495.70574362,0.00030136,14]
[311153743,1704937842798,-500.0,0.00030136,2]
[311153745,1704937842807,-500.10363802,0.00030136,2]
[311153747,1704937842817,-500.0,0.00030136,2]
[311153749,1704937842825,-546.57919463,0.00030136,2]
[311153750,1704937842834,-503.81743381,0.00030136,2]
[311153751,1704937842842,-500.0,0.00030136,2]
[311153752,1704937842851,-503.69029425,0.00030136,2]
[311153753,1704937842860,-500.0,0.00030136,2]
[311153754,1704937842870,-500.0,0.00030136,2]
[311153755,1704937842879,-500.0,0.00030136,2]
[311153756,1704937842887,-500.0,0.00030136,2]
[311153758,1704937842896,-500.0,0.00030136,2]
[311153759,1704937842905,-500.0,0.00030136,2]
[311153760,1704937842914,-553.98127692,0.00030136,2]
[311153762,1704937842924,-500.0,0.00030136,2]
[311153764,1704937842933,-500.0,0.00030136,2]
[311153765,1704937842942,-609.59021071,0.00030136,2]
[311153768,1704937842951,-500.0,0.00030136,2]
[311153771,1704937842960,-500.0,0.00030136,2]
[311153773,1704937842969,-500.0,0.00030136,2]
[311153775,1704937842978,-500.0,0.00030136,2]
[311153777,1704937842987,-500.0,0.00030136,2]
[311153779,1704937842996,-500.0,0.00030136,2]
[311153781,1704937843005,-500.0,0.00030136,2]
[311153782,1704937843014,-500.0,0.00030136,2]
[311153783,1704937843023,-500.0,0.00030136,2]
[311153785,1704937843032,-260.14544429,0.00030136,2]
[311153787,1704937843042,-458.76312595,0.00030136,2]
[311153789,1704937843052,-500.0,0.00030136,2]
[311153791,1704937843061,-500.0,0.00030136,2]
[311153793,1704937843070,-1036.35,0.00030136,2]
[311153795,1704937843079,-500.0,0.00030136,2]
[311153796,1704937843088,-501.28748838,0.00030136,2]
[311153797,1704937843097,-500.0,0.00030136,2]
[311153798,1704937843106,-515.14845484,0.00030136,2]
[311153799,1704937843115,-500.0,0.00030136,2]
[311153802,1704937843125,-500.0,0.00030136,2]
[311153803,1704937843134,-500.0,0.00030136,2]
[311153805,1704937843143,-500.0,0.00030136,2]
[311153807,1704937843153,-524.05,0.00030136,2]
[311153809,1704937843162,-500.0,0.00030136,2]
[311153811,1704937843172,-510.03142022,0.00030136,2]
[311153813,1704937843183,-500.0,0.00030136,2]
[311153815,1704937843192,-509.18685247,0.00030136,2]
[311153817,1704937843201,-500.0,0.00030136,2]
[311153819,1704937843210,-500.0,0.00030136,2]
[311153821,1704937843219,-500.0,0.00030136,2]
[311153823,1704937843228,-548.82,0.00030136,2]
[311153825,1704937843237,-500.0,0.00030136,2]
[311153826,1704937843246,-560.66390144,0.00030136,2]
[311153828,1704937843255,-281.74517376,0.00030136,2]
[311153830,1704937843264,-500.0,0.00030136,2]
[311153832,1704937843273,-500.0,0.00030136,2]
[311153834,1704937843282,-500.0,0.00030136,2]
[311153835,1704937843291,-500.0,0.00030136,2]
[311153836,1704937843300,-500.0,0.00030136,2]
[311153837,1704937843309,-500.0,0.00030136,2]
[311153838,1704937843318,-500.0,0.00030136,2]
[311153840,1704937843327,-508.88550191,0.00030136,2]
[311153842,1704937843336,-156.25447643,0.00030136,2]
[311153843,1704937843346,-500.0,0.00030136,2]
[311153844,1704937843355,-500.55430526,0.00030136,2]
[311153845,1704937843363,-500.0,0.00030136,2]
[311153846,1704937843373,-203.6129773,0.00030136,2]
[311153847,1704937843383,-500.0,0.00030136,2]
[311153848,1704937843393,-505.37692655,0.00030136,2]
[311153849,1704937843403,-504.99644365,0.00030136,30]
[311153850,1704937843412,-500.0,0.00030136,2]
[311153851,1704937843421,-515.83616161,0.00030136,2]
[311153854,1704937843430,-509.94278174,0.00030136,2]
[311153855,1704937843440,-500.0,0.00030136,2]
[311153857,1704937843449,-1011.98987962,0.00030136,5]
[311153859,1704937843458,-500.0,0.00030136,2]
[311153861,1704937843469,-500.0,0.00030136,2]
[311153863,1704937843479,-500.0,0.00030136,2]
[311153865,1704937843488,-504.7252435,0.00030136,2]
[311153866,1704937843497,-522.97859531,0.00030136,2]
[311153867,1704937843506,-506.61528026,0.00030136,2]
[311153868,1704937843585,-501.25420699,0.00030136,2]
[311153869,1704937843602,-500.0,0.00030136,2]
[311153870,1704937843611,-500.0,0.00030136,2]
[311153871,1704937843621,-500.0,0.00030136,2]
[311153872,1704937843630,-568.37,0.00030136,2]
[311153873,1704937843640,-500.0,0.00030136,2]
[311153874,1704937843650,-500.0,0.00030136,2]
[311153875,1704937843660,-471.58118241,0.00030136,2]
[311153876,1704937843669,-500.0,0.00030136,2]
[311153877,1704937843678,-653.83,0.00030136,2]
[311153878,1704937843689,-167.03143862,0.00030136,2]
[311153879,1704937843698,-526.31638837,0.00030136,2]
[311153880,1704937843707,-500.0,0.00030136,2]
[311153881,1704937843716,-501.98548145,0.00030136,2]
[311153882,1704937843726,-500.0,0.00030136,2]
[311153883,1704937843735,-502.87918965,0.00030136,2]
[311153884,1704937843745,-502.13282351,0.00030136,2]
[311153885,1704937843754,-500.0,0.00030136,2]
[311153886,1704937843763,-500.0,0.00030136,2]
[311153887,1704937843772,-502.26759104,0.00030136,2]
[311153888,1704937843781,-505.13877686,0.00030136,2]
[311153889,1704937843791,-518.15706842,0.00030136,2]
[311153890,1704937843800,-500.0,0.00030136,2]
[311153891,1704937843809,-500.0,0.00030136,2]
[311153892,1704937843819,-500.0,0.00030136,2]
[311153893,1704937843829,-500.0,0.00030136,2]
[311153894,1704937843838,-500.0,0.00030136,2]
[311153895,1704937843847,-500.0,0.00030136,2]
[311153896,1704937843858,-500.0,0.00030136,2]
[311153897,1704937843869,-764.5,0.00030136,2]
[311153898,1704937843878,-580.59,0.00030136,2]
[311153899,1704937843887,-448.03715962,0.00030136,2]
[311153900,1704937843895,-500.0,0.00030136,2]
[311153901,1704937843904,-412.25216866,0.00030136,2]
[311153902,1704937843913,-500.0,0.00030136,2]
[311153903,1704937843922,-500.0,0.00030136,2]
[311153904,1704937843931,-500.0,0.00030136,2]
[311153905,1704937843940,-500.0,0.00030136,2]
[311153906,1704937843949,-500.0,0.00030136,2]
[311153907,1704937843958,-500.0,0.00030136,2]
[311153908,1704937843967,-500.0,0.00030136,2]
[311153909,1704937843977,-500.0,0.00030136,2]
[311153910,1704937843986,-500.0,0.00030136,2]
[311153911,1704937843995,-419.60938855,0.00030136,2]
[311153912,1704937844004,-500.0,0.00030136,2]
[311153913,1704937844013,-500.86129898,0.00030136,2]
[311153914,1704937844022,-500.0,0.00030136,2]
[311153915,1704937844031,-500.0,0.00030136,2]
[311153916,1704937844041,-500.0,0.00030136,2]
[311153917,1704937844050,-500.0,0.00030136,2]
[311153918,1704937844059,-500.0,0.00030136,2]
[311153919,1704937844068,-500.0,0.00030136,2]
[311153920,1704937844077,-500.0,0.00030136,2]
[311153921,1704937844086,-500.0,0.00030136,2]
[311153922,1704937844095,-500.0,0.00030136,2]
[311153923,1704937844106,-500.0,0.00030136,2]
[311153924,1704937844115,-500.0,0.00030136,2]
[311153925,1704937844125,-500.0,0.00030136,2]
[311153926,1704937844134,-500.0,0.00030136,2]
[311153927,1704937844143,-289.88041336,0.00030136,2]
[311153928,1704937844152,-500.0,0.00030136,2]
[311153929,1704937844161,-500.0,0.00030136,2]
[311153930,1704937844170,-500.0,0.00030136,2]
[311153931,1704937844179,-502.14865231,0.00030136,2]
[311153932,1704937844190,-500.20971053,0.00030136,2]
[311153933,1704937844200,-500.0,0.00030136,2]
[311153934,1704937844209,-500.0,0.00030136,2]
[311153935,1704937844218,-500.0,0.00030136,2]
[311153936,1704937844227,-500.0,0.00030136,2]
[311153937,1704937844237,-500.0,0.00030136,2]
[311153938,1704937844246,-500.0,0.00030136,2]
[311153939,1704937844255,-500.0,0.00030136,2]
[311153940,1704937844264,-500.0,0.00030136,2]
[311153941,1704937844274,-500.0,0.00030136,2]
[311153942,1704937844283,-500.0,0.00030136,2]
[311153943,1704937844292,-182.36416052,0.00030136,2]
[311153944,1704937844301,-500.0,0.00030136,2]
[311153945,1704937844311,-1004.02452358,0.00030136,2]
[311153946,1704937844320,-500.0,0.00030136,2]
[311153947,1704937844329,-500.0,0.00030136,2]
[311153948,1704937844338,-500.0,0.00030136,2]
[311153949,1704937844347,-500.0,0.00030136,2]
[311153950,1704937844356,-500.0,0.00030136,2]
[311153951,1704937844366,-330.37774473,0.00030136,2]
[311153952,1704937844374,-500.0,0.00030136,2]
[311153953,1704937844383,-500.0,0.00030136,2]
[311153954,1704937844392,-500.0,0.00030136,2]
[311153955,1704937844401,-402.80640886,0.00030136,2]
[311153956,1704937844410,-500.0,0.00030136,2]
[311153957,1704937844419,-500.0,0.00030136,2]
[311153958,1704937844428,-500.0,0.00030136,2]
[311153959,1704937844439,-558.7,0.00030136,2]
[311153960,1704937844449,-500.0,0.00030136,2]
[311153961,1704937844458,-200.0,0.00030136,2]
[311153962,1704937844469,-452.81185643,0.00030136,2]
[311153963,1704937844479,-500.0,0.00030136,2]
[311153964,1704937844488,-501.01611635,0.00030136,2]
[311153965,1704937844499,-500.0,0.00030136,2]
[311153966,1704937844509,-500.0,0.00030136,2]
[311153967,1704937844518,-504.73832903,0.00030136,2]
[311153968,1704937844527,-500.0,0.00030136,2]
[311153969,1704937844536,-500.0,0.00030136,2]
[311153970,1704937844546,-500.0,0.00030136,2]
[311153971,1704937844555,-500.0,0.00030136,2]
[311153972,1704937844564,-500.0,0.00030136,2]
[311153973,1704937844573,-503.20398845,0.00030136,2]
[311153974,1704937844582,-502.14366015,0.00030136,2]
[311153975,1704937844592,-808.25,0.00030136,2]
[311153976,1704937844601,-282.86431862,0.00030136,2]
[311153977,1704937844610,-500.5582127,0.00030136,2]
[311153978,1704937844619,-154.4699964,0.00030136,2]
[311153979,1704937844629,-713.17,0.00030136,2]
[311153980,1704937844638,-500.0,0.00030136,5]
[311153981,1704937844649,-500.0,0.00030136,2]
[311153982,1704937844658,-633.5610616,0.00030136,2]
[311153983,1704937844667,-502.16777069,0.00030136,2]
[311153984,1704937844677,-500.0,0.00030136,2]
[311153985,1704937844689,-500.0,0.00030136,2]
[311153986,1704937844698,-1264.52,0.00030136,2]
[311153987,1704937844709,-500.0,0.00030136,2]
[311153988,1704937844718,-503.83934785,0.00030136,2]
[311153989,1704937844727,-500.0,0.00030136,2]
[311153990,1704937844737,-936.21,0.00030136,2]
[311153991,1704937844746,-500.0,0.00030136,2]
[311153992,1704937844756,-203.18962683,0.00030136,2]
[311153993,1704937844765,-500.0,0.00030136,2]
[311153994,1704937844775,-500.0,0.00030136,2]
[311153995,1704937844784,-824.78,0.00030136,2]
[311153996,1704937844794,-500.0,0.00030136,2]
[311153997,1704937844805,-500.0,0.00030136,2]
[311153998,1704937844814,-2013.66,0.00030136,2]
[311153999,1704937844824,-500.0,0.00030136,2]
[311154000,1704937844833,-500.0,0.00030136,2]
[311154001,1704937844842,-500.0,0.00030136,2]
[311154002,1704937844851,-500.0,0.00030136,2]
[311154003,1704937844860,-500.0,0.00030136,2]
[311154004,1704937844870,-345.71155924,0.00030136,2]
[311154005,1704937844879,-500.0,0.00030136,2]
[311154006,1704937844888,-261.81984211,0.00030136,2]
[311154007,1704937844898,-500.0,0.00030136,2]
[311154008,1704937844907,-500.0,0.00030136,2]
[311154009,1704937844916,-167.80276975,0.00030136,2]
[311154010,1704937844926,-509.73800057,0.00030136,2]
[311154011,1704937844935,-500.0,0.00030136,2]
[311154012,1704937844945,-500.0,0.00030136,2]
[311154013,1704937844954,-500.0,0.00030136,2]
[311154014,1704937844963,-1003.24708738,0.00030136,2]
[311154015,1704937844972,-500.0,0.00030136,2]
[311154016,1704937844981,-500.0,0.00030136,2]
[311154017,1704937844990,-500.0,0.00030136,2]
[311154018,1704937844999,-513.17611346,0.00030136,2]
[311154019,1704937845009,-500.0,0.00030136,2]
[311154020,1704937845018,-500.0,0.00030136,2]
[311154021,1704937845027,-500.0,0.00030136,2]
[311154022,1704937845036,-9680.85,0.00030136,2]
[311154023,1704937845045,-500.0,0.00030136,2]
[311154024,1704937845054,-500.0,0.00030136,2]
[311154025,1704937845064,-500.0,0.00030136,2]
[311154026,1704937845073,-500.0,0.00030136,2]
[311154027,1704937845082,-647.95,0.00030136,2]
[311154028,1704937845090,-500.0,0.00030136,2]
[311154029,1704937845099,-500.0,0.00030136,2]
[311154030,1704937845109,-500.0,0.00030136,2]
[311154031,1704937845118,-500.0,0.00030136,2]
[311154032,1704937845127,-500.0,0.00030136,2]
[311154033,1704937845136,-500.0,0.00030136,2]
[311154034,1704937845145,-500.0,0.00030136,2]
[311154035,1704937845154,-500.0,0.00030136,2]
[311154036,1704937845162,-556.33595745,0.00030136,2]
[311154037,1704937845171,-1055.19,0.00030136,2]
[311154038,1704937845181,-500.0,0.00030136,2]
[311154039,1704937845191,-500.0,0.00030136,2]
[311154040,1704937845202,-659.74,0.00030136,2]
[311154041,1704937845283,-500.0,0.00030136,2]
[311154042,1704937845292,-5674.81,0.00030136,2]
[311154043,1704937845302,-471.53290531,0.00030136,2]
[311154044,1704937845312,-508.19728668,0.00030136,2]
[311154045,1704937845321,-6467.16,0.00030136,2]
[311154046,1704937845330,-249.41632993,0.00030136,2]
[311154047,1704937845339,-500.0,0.00030136,2]
[311154048,1704937845348,-500.0,0.00030136,2]
[311154049,1704937845358,-501.46158454,0.00030136,2]
[311154050,1704937845367,-500.0,0.00030136,2]
[311154051,1704937845378,-500.0,0.00030136,2]
[311154052,1704937845387,-217.3164488,0.00030136,2]
[311154053,1704937845396,-500.0,0.00030136,2]
[311154054,1704937845405,-500.0,0.00030136,2]
[311154055,1704937845414,-2335.31,0.00030136,2]
[311154056,1704937845423,-500.0,0.00030136,2]
[311154057,1704937845432,-500.0,0.00030136,2]
[311154058,1704937845442,-16134.31571473,0.00030136,10]
[311154059,1704937845451,-505.8736009,0.00030136,2]
[311154060,1704937845459,-1536.62,0.00030136,2]
[311154061,1704937845468,-510.44514775,0.00030136,2]
[311154062,1704937845477,-3514.61,0.00030136,2]
[311154063,1704937845486,-503.66399589,0.00030136,2]
[311154064,1704937845495,-500.0,0.00030136,2]
[311154065,1704937845504,-504.14164348,0.00030136,2]
[311154066,1704937845513,-500.0,0.00030136,2]
[311154067,1704937845523,-501.82843532,0.00030136,2]
[311154068,1704937845532,-500.0,0.00030136,2]
[311154069,1704937845542,-504.5661768,0.00030136,2]
[311154070,1704937845551,-500.0,0.00030136,2]
[311154071,1704937845561,-500.07853957,0.00030136,2]
[311154072,1704937845571,-500.0,0.00030136,2]
[311154073,1704937845580,-624.11,0.00030136,2]
[311154074,1704937845589,-14481.05,0.00030136,2]
[311154075,1704937845598,-719.59,0.00030136,2]
[311154076,1704937845607,-500.0,0.00030136,2]
[311154077,1704937845616,-500.0,0.00030136,2]
[311154078,1704937845626,-944.38,0.00030136,2]
[311154079,1704937845635,-500.0,0.00030136,2]
[311154080,1704937845644,-500.0,0.00030136,2]
[311154081,1704937845653,-303.4997889,0.00030136,2]
[311154082,1704937845662,-504.58329312,0.00030136,2]
[311154083,1704937845671,-500.0,0.00030136,2]
[311154084,1704937845681,-500.0,0.00030136,2]
[311154085,1704937845691,-500.0,0.00030136,2]
[311154086,1704937845700,-200.61953262,0.00030136,2]
[311154087,1704937845710,-1197.82,0.00030136,2]
[311154088,1704937845720,-1197.82,0.00030136,2]
[311154090,1704937845729,-1197.82,0.00030136,2]
[311154091,1704937845738,-1197.82,0.00030136,2]
[311154092,1704937845746,-1197.82,0.00030136,2]
[311154093,1704937845755,-1197.82,0.00030136,2]
[311154094,1704937845765,-1197.82,0.00030136,2]
[311154095,1704937845775,-500.0,0.00030136,2]
[311154096,1704937845785,-1197.82,0.00030136,2]
[311154097,1704937845794,-1197.82,0.00030136,2]
[311154098,1704937845803,-1197.82,0.00030136,2]
[311154099,1704937845812,-1197.82,0.00030136,2]
[311154100,1704937845821,-1197.82,0.00030136,2]
[311154101,1704937845830,-1197.82,0.00030136,2]
[311154102,1704937845839,-1197.82,0.00030136,2]
[311154103,1704937845848,-1197.82,0.00030136,2]
[311154104,1704937845857,-500.0,0.00030136,2]
[311154105,1704937845866,-1197.82,0.00030136,2]
[311154106,1704937845875,-1197.82,0.00030136,2]
[311154107,1704937845884,-1197.82,0.00030136,2]
[311154108,1704937845893,-1197.82,0.00030136,2]
[311154109,1704937845902,-1197.82,0.00030136,2]
[311154110,1704937845910,-1197.82,0.00030136,2]
[311154111,1704937845920,-500.0,0.00030136,2]
[311154112,1704937845929,-1197.82,0.00030136,2]
[311154113,1704937845941,-1197.82,0.00030136,2]
[311154115,1704937845950,-1197.94222227,0.00030136,2]